bitfinex/quotes_ETHUSD_20250106
["timestamp","ask_amount","ask_price","bid_price","bid_amount"]
[1736181426959,0.04149985,3733.7,3732.6,1.5964]
[1736181427164,0.04149985,3733.7,3732.8,2.67893]
[1736181427380,0.43759799,3733.6,3732.3,4.61120492]
[1736181427525,0.04147933,3733.6,3732.3,3.53900092]
[1736181427724,1.6563,3733.8,3733.0,2.67874]
[1736181427926,0.03985884,3733.7,3733.1,0.02678472]
[1736181428430,1.5206,3734.2,3733.6,2.67838]
[1736181428739,0.03994088,3734.1,3733.7,2.67829]
[1736181429465,0.03994088,3734.1,3733.8,0.02678041]
[1736181429677,1.5809,3734.6,3733.8,0.02678041]
[1736181429893,0.04011867,3734.5,3734.1,2.67799]
[1736181430032,0.04011867,3734.5,3733.8,2.67822]
[1736181430532,1.6232,3733.7,3732.3,2.610002]
[1736181430749,1.6232,3733.7,3732.9,2.67881]
[1736181430750,0.04004749,3733.6,3732.9,2.67881]
[1736181431062,0.04004749,3733.6,3733.0,2.67875]
[1736181431241,1.6232,3733.7,3732.3,8.289246]
[1736181431432,0.03994577,3733.6,3732.4,3.22924]
[1736181432045,0.03994577,3733.6,3732.8,2.67892]
[1736181432242,0.47408035,3733.6,3732.8,2.67892]
[1736181432482,0.47408035,3733.6,3732.5,0.55]
[1736181432483,3.15246035,3733.6,3732.5,2.67912]
[1736181432683,1.5427,3733.4,3732.3,2.6793]
[1736181432977,0.03998595,3733.3,3732.4,2.67923]
[1736181434280,2.71857595,3733.3,3732.2,2.67934]
[1736181434462,0.509527,3733.3,3732.3,2.67928]
[1736181434866,2.71857595,3733.3,3732.3,2.67928]
[1736181435264,0.03998595,3733.3,3732.3,2.67928]
[1736181436654,0.03998595,3733.3,3732.4,2.67922]
[1736181437490,0.03998595,3733.3,3732.5,0.02678809]
[1736181437804,1.5427,3733.4,3732.5,0.02678809]
[1736181438154,1.10591701,3734.1,3733.7,2.67829]
[1736181438355,1.10591701,3734.1,3734.0,2.67809]
[1736181438556,1.10591701,3734.1,3734.0,3.22809]
[1736181438796,1.10591701,3734.1,3734.0,4.87529]
[1736181439181,1.10591701,3734.1,3734.0,7.87529]
[1736181440185,2.78631622,3734.7,3734.0,7.87529]
[1736181440186,1.5958,3735.4,3734.6,2.67764]
[1736181440391,2.023069,3735.4,3734.6,2.67764]
[1736181440870,2.023069,3735.4,3734.2,2.67788]
[1736181440871,2.67716,3735.3,3734.2,2.67788]
[1736181442183,0.03945954,3735.2,3734.2,2.67788]
[1736181442371,1.5463,3735.1,3733.8,3.11928112]
[1736181442565,2.67741,3735.0,3733.9,2.6781]
[1736181442762,0.42631695,3734.9,3734.0,2.7048575]
[1736181442976,0.42631695,3734.9,3734.0,2.67808]
[1736181443172,0.03979655,3734.8,3734.0,2.67808]
[1736181443775,1.5904,3734.7,3733.8,2.67822]
[1736181444070,0.03976965,3734.6,3733.8,2.67822]
[1736181444266,0.47053161,3734.6,3733.8,2.67822]
[1736181444474,0.47053161,3734.6,3733.6,2.67836]
[1736181444822,4.26814,3734.5,3733.4,2.6785]
[1736181444973,1.5904,3734.1,3733.0,2.67874]
[1736181445302,1.5904,3734.1,3733.1,2.67873]
[1736181445742,2.7176007,3734.0,3732.8,2.67889]
[1736181445870,0.43080007,3733.9,3732.8,2.67889]
[1736181446067,0.03931826,3733.8,3732.9,2.67881]
[1736181446271,0.03931826,3733.8,3732.5,2.67915]
[1736181446272,2.67838,3733.6,3732.5,2.67915]
[1736181446532,0.03925672,3733.5,3732.5,2.67915]
[1736181446680,0.03925672,3733.5,3732.6,2.67908]
[1736181446873,0.03925672,3733.5,3732.7,0.02678632]
[1736181447069,0.42856067,3733.5,3732.7,0.02678632]
[1736181447375,0.42856067,3733.5,3732.6,2.67908]
[1736181447376,0.03922406,3733.4,3732.6,2.67908]
[1736181448284,0.03922406,3733.4,3732.3,2.67928]
[1736181448472,1.6001,3733.3,3731.9,3.0]
[1736181448671,1.6001,3733.1,3731.6,2.67974]
[1736181448871,1.6001,3732.5,3731.4,2.67989]
[1736181449103,0.03863016,3732.4,3731.4,2.67995]
[1736181449412,1.6001,3732.5,3731.6,2.6798]
[1736181449613,1.6001,3732.5,3731.3,2.67997]
[1736181449920,0.03680881,3732.4,3731.5,2.67988]
[1736181450612,0.03680881,3732.4,3731.6,2.67981]
[1736181451182,1.6001,3732.5,3731.6,2.67981]
[1736181451378,0.0075,3732.4,3731.0,1.072569]
[1736181451591,1.6196,3732.3,3731.2,0.02679421]
[1736181451794,1.6196,3732.3,3731.0,0.02679787]
[1736181451993,1.6196,3732.3,3732.2,35.0]
[1736181452989,1.65639328,3732.3,3732.2,35.0]
[1736181456713,2.08995761,3732.3,3732.2,35.0]
[1736181457094,0.47785761,3732.3,3732.2,35.0]
[1736181457297,7.36280328,3732.3,3732.2,35.0]
[1736181459101,7.88872968,3732.3,3732.2,35.0]
[1736181459509,7.35530328,3732.3,3732.2,35.0]
[1736181460398,1.67599328,3732.3,3732.2,35.0]
[1736181460763,4.31851,3732.3,3732.2,35.0]
[1736181460929,1.6392,3732.3,3732.2,35.0]
[1736181462730,1.5708,3732.7,3732.2,35.0]
[1736181462898,1.5708,3732.7,3731.8,2.67966]
[1736181463097,1.5708,3732.7,3731.2,1.6562]
[1736181463098,2.34223483,3732.7,3731.5,2.67982]
[1736181463299,2.67918,3732.5,3731.4,0.55]
[1736181463502,1.60494462,3732.4,3731.3,2.68001]
[1736181463797,2.67931,3732.3,3731.1,2.68015]
[1736181464016,0.0075,3732.2,3730.9,4.6227]
[1736181464223,1.5718,3731.9,3730.9,7.30301]
[1736181464398,1.5718,3731.9,3731.8,35.0]
[1736181465203,1.5625,3732.3,3731.8,35.0]
[1736181465403,1.5625,3732.3,3731.2,3.11928112]
[1736181465603,0.03414462,3732.4,3731.4,2.67995]
[1736181465805,0.03414462,3732.4,3732.3,35.0]
[1736181468133,0.06809679,3732.4,3732.3,35.0]
[1736181471709,0.50547047,3732.4,3732.3,35.0]
[1736181471915,0.06809679,3732.4,3732.3,35.0]
[1736181472321,2.74733679,3732.4,3732.3,35.0]
[1736181475339,7.38913679,3732.4,3732.3,35.0]
[1736181475562,7.38163679,3732.4,3732.3,35.0]
[1736181477229,7.38913679,3732.4,3732.3,35.0]
[1736181477424,8.45066578,3732.4,3732.3,35.0]
[1736181481939,2.76392578,3732.4,3732.3,35.0]
[1736181482167,0.03414462,3732.4,3732.3,35.0]
[1736181483562,0.06448554,3732.4,3732.3,35.0]
[1736181483876,1.61968554,3732.4,3732.3,35.0]
[1736181484249,4.29892554,3732.4,3732.3,35.0]
[1736181485434,4.72881809,3732.4,3732.3,35.0]
[1736181486135,4.73631809,3732.4,3732.3,35.0]
[1736181490642,7.73631809,3732.4,3732.3,35.0]
[1736181490974,9.95668888,3732.4,3732.3,35.0]
[1736181491972,10.5025572,3732.4,3732.3,35.0]
[1736181492137,11.06850263,3732.4,3732.3,35.0]
[1736181492495,0.0075,3732.2,3730.8,4.26888]
[1736181492769,2.67972,3731.8,3730.8,1.5885]
[1736181492976,2.70985706,3731.7,3730.8,1.5885]
[1736181493550,2.70985706,3731.7,3731.6,35.0]
[1736181493757,0.03009706,3731.7,3731.6,35.0]
[1736181493962,2.24508049,3732.1,3731.6,36.5008]
[1736181494157,2.24508049,3732.1,3731.6,1.5008]
[1736181494488,0.0290809,3732.0,3731.6,1.5008]
[1736181494638,2.27416139,3732.0,3731.6,1.5008]
[1736181495052,2.27416139,3732.0,3731.9,35.0]
[1736181496102,0.0290809,3732.0,3731.9,35.0]
[1736181496441,2.67939,3732.2,3731.9,35.0]
[1736181496649,0.02922152,3732.0,3731.6,1.5008]
[1736181496973,0.02916268,3731.9,3731.6,1.5008]
[1736181497175,3.17525151,3732.2,3731.6,1.5008]
[1736181497380,0.02924205,3732.1,3731.6,1.5008]
[1736181497680,2.70873205,3732.1,3732.0,35.0]
[1736181498685,3.25711392,3732.1,3732.0,35.0]
[1736181498850,0.58512392,3732.1,3731.1,1.6123]
[1736181499188,2.67979,3731.7,3731.1,1.6123]
[1736181499681,0.02914565,3731.6,3731.1,1.6123]
[1736181500181,0.02912511,3731.5,3731.1,1.6123]
[1736181500386,1.5898,3731.9,3731.1,1.6123]
[1736181500591,0.73605771,3731.8,3731.1,1.6123]
[1736181500749,2.67987,3731.6,3731.1,1.6123]
[1736181500940,0.02911745,3731.5,3731.1,1.6123]
[1736181501347,2.70899745,3731.5,3731.4,35.0]
[1736181503378,2.71649745,3731.5,3731.4,35.0]
[1736181503696,3.55133017,3731.5,3731.4,35.0]
[1736181504105,8.32909268,3731.5,3731.4,35.0]
[1736181504768,0.0075,3730.7,3730.2,0.9]
[1736181504957,2.68074,3730.3,3730.2,0.9]
[1736181505156,2.70927526,3730.3,3730.2,35.9]
[1736181505888,2.71677526,3730.3,3730.2,35.9]
[1736181506090,3.25650979,3730.3,3730.2,35.9]
[1736181506397,4.81550979,3730.3,3730.2,35.9]
[1736181506757,4.81550979,3730.3,3730.2,0.9]
[1736181506964,7.81550979,3730.3,3730.2,0.9]
[1736181507160,1.559,3730.1,3729.9,4.15e-06]
[1736181507360,11.13476015,3730.0,3729.9,4.15e-06]
[1736181509091,13.3805068,3730.0,3729.9,4.15e-06]
[1736181509400,13.9305068,3730.0,3729.9,4.15e-06]
[1736181510295,11.68476015,3730.0,3729.9,4.15e-06]
[1736181510494,13.84476015,3730.0,3729.9,4.15e-06]
[1736181510680,13.29476015,3730.0,3729.9,4.15e-06]
[1736181511289,13.29476015,3730.0,3729.5,35.0]
[1736181511290,4.29665,3729.6,3729.5,35.0]
[1736181511593,7.81942714,3729.6,3729.5,35.0]
[1736181511765,0.02663336,3729.6,3729.5,35.0]
[1736181511959,2.68121,3729.7,3729.5,35.0]
[1736181512201,2.70683192,3729.6,3729.0,1.5138]
[1736181512566,2.70683192,3729.6,3727.8,2.52500414]
[1736181512567,0.02557192,3729.6,3727.7,1.5138]
[1736181512898,2.68142,3729.4,3728.3,1.5138]
[1736181513103,3.0,3730.0,3729.3,35.0]
[1736181513269,0.52278831,3730.0,3729.3,35.0]
[1736181513475,0.52278831,3730.0,3729.1,1.5138]
[1736181513476,2.68082,3730.2,3729.1,1.5138]
[1736181513882,2.68082,3730.2,3729.1,4.1954]
[1736181514079,2.68082,3730.2,3730.1,35.0]
[1736181515693,2.68832,3730.2,3730.1,35.0]
[1736181515887,3.5561891,3730.2,3730.1,35.0]
[1736181518810,3.5486891,3730.2,3730.1,35.0]
[1736181521800,2.70590212,3730.2,3730.1,35.0]
[1736181522103,2.68082,3730.2,3730.1,35.0]
[1736181522405,0.02721021,3730.2,3730.1,35.0]
[1736181522590,3.21455566,3730.5,3730.1,35.0]
[1736181522792,1.47569226,3730.9,3730.0,1.533]
[1736181522997,0.27903021,3731.0,3730.0,1.533]
[1736181523208,0.27903021,3731.0,3730.5,1.533]
[1736181523407,0.27903021,3731.0,3730.6,2.70730383]
[1736181523607,2.24574665,3731.7,3730.7,4.21342]
[1736181524108,2.24574665,3731.7,3730.9,2.68031]
[1736181524319,2.24574665,3731.7,3730.8,0.02680186]
[1736181524320,2.24574665,3731.7,3730.8,2.70718186]
[1736181524520,2.24574665,3731.7,3730.9,1.5019]
[1736181524669,2.24574665,3731.7,3730.9,4.1822]
[1736181524876,2.6796,3732.0,3730.9,4.1822]
[1736181525087,3.47579121,3732.0,3730.9,4.1822]
[1736181525501,0.79619121,3732.0,3730.9,4.1822]
[1736181525696,2.6796,3731.9,3730.9,4.1822]
[1736181526303,2.6796,3731.9,3730.9,1.5019]
[1736181527710,2.67968,3731.8,3730.9,1.5019]
[1736181528515,3.08120997,3731.8,3730.9,1.5019]
[1736181529979,2.6798,3731.7,3730.9,1.5019]
[1736181531418,2.68003,3731.3,3730.9,1.5019]
[1736181531601,5.20487414,3731.6,3730.9,1.5019]
[1736181531804,1.5145,3731.5,3729.9,1.5349]
[1736181532128,2.53250414,3731.3,3729.9,1.5349]
[1736181532276,0.40470041,3731.4,3730.1,1.5349]
[1736181532477,0.40152997,3731.8,3730.5,1.5349]
[1736181532718,2.67975,3731.7,3730.8,1.5349]
[1736181532899,2.6799,3731.5,3730.8,1.5349]
[1736181535391,2.67998,3731.4,3730.8,1.5349]
[1736181537792,2.68003,3731.3,3730.8,1.5349]
[1736181537993,2.948033,3731.3,3730.8,1.5349]
[1736181539328,2.948033,3731.3,3730.5,1.5531]
[1736181539329,0.268003,3731.3,3730.5,1.5531]
[1736181539831,0.40152997,3731.8,3730.9,2.6803]
[1736181540001,0.0075,3732.2,3731.0,1.5531]
[1736181540328,0.54823831,3732.1,3731.0,1.5531]
[1736181540632,2.67967,3731.8,3731.0,1.5531]
[1736181541001,0.54823831,3732.1,3731.0,1.5531]
[1736181541201,2.67973,3731.8,3731.0,1.5531]
[1736181541414,2.947723,3731.7,3731.0,1.5531]
[1736181541810,2.67986,3731.6,3731.0,1.5531]
[1736181542456,0.0075,3731.6,3731.0,1.5531]
[1736181542728,2.79297714,3731.7,3730.7,1.6581]
[1736181542729,2.67989,3731.5,3730.7,1.6581]
[1736181543095,0.267973,3731.7,3730.7,1.6581]
[1736181543429,2.67997,3731.4,3730.7,1.6581]
[1736181543634,3.22726471,3731.4,3730.7,1.6581]
[1736181544340,0.54729471,3731.4,3730.7,1.6581]
[1736181544487,2.68026,3731.0,3730.7,1.6581]
[1736181544689,1.5747,3730.7,3729.3,1.6276]
[1736181544936,2.52500414,3730.3,3729.3,1.6276]
[1736181545144,4.5747,3730.7,3729.3,1.6276]
[1736181545145,2.52500414,3730.0,3729.3,1.6276]
[1736181545333,2.68105,3729.9,3729.3,1.6276]
[1736181545489,0.54636134,3730.0,3729.3,1.6276]
[1736181545836,2.6806,3730.5,3729.5,1.6276]
[1736181546221,2.6806,3730.5,3729.5,1.65441047]
[1736181546427,2.6806,3730.5,3729.5,1.6276]
[1736181547207,2.68068,3730.4,3729.5,1.6276]
[1736181547716,2.68053,3730.7,3729.7,1.6646]
[1736181548214,2.68054,3730.6,3729.7,1.6646]
[1736181549142,2.68061,3730.5,3729.7,1.6646]
[1736181551104,0.54346543,3730.8,3729.7,1.6646]
[1736181551310,0.0075,3730.6,3729.7,1.6646]
[1736181551529,2.68096,3730.0,3729.7,1.6646]
[1736181551842,2.68133,3729.5,3728.7,1.5414]
[1736181552063,2.68142,3729.4,3728.7,1.5414]
[1736181553109,2.68148,3729.3,3728.7,1.5414]
[1736181553311,2.68163,3729.1,3728.7,1.5414]
[1736181553526,0.268148,3729.3,3728.0,1.6092]
[1736181553934,2.68206,3728.5,3728.0,1.6092]
[1736181554271,2.68197,3728.6,3728.0,1.6092]
[1736181554447,0.268148,3729.3,3728.0,1.6092]
[1736181554448,3.0,3728.7,3728.0,1.6092]
[1736181554854,2.949668,3729.3,3728.0,1.6092]
[1736181554855,2.6817,3729.0,3728.0,1.6092]
[1736181555141,3.0,3728.8,3728.0,1.6092]
[1736181555357,0.56817,3728.9,3728.0,1.6092]
[1736181555358,3.0,3728.6,3728.0,1.6092]
[1736181555552,0.56817,3728.9,3728.0,1.6092]
[1736181555755,2.18328913,3729.4,3728.1,0.02682219]
[1736181555919,1.655,3729.7,3728.2,1.5926]
[1736181556118,4.33624,3729.7,3728.3,1.5926]
[1736181556319,1.5661,3730.0,3728.6,0.55]
[1736181556622,3.0,3729.5,3728.8,1.6543]
[1736181556925,2.68134,3729.5,3728.8,1.6543]
[1736181557135,2.68117,3729.8,3728.8,1.6543]
[1736181557312,5.1060824,3730.0,3728.8,1.6543]
[1736181557313,3.0,3729.6,3728.8,1.6543]
[1736181557517,2.68127,3729.6,3728.8,1.6543]
[1736181557846,2.68126,3729.6,3728.8,1.6543]
[1736181558753,3.0,3729.4,3728.8,1.6543]
[1736181559128,0.568132,3729.3,3728.1,1.5449]
[1736181559335,5.25372214,3730.0,3728.2,0.02682012]
[1736181559336,2.68154,3729.2,3728.2,0.02682012]
[1736181559541,2.68163,3729.1,3728.1,1.5449]
[1736181559744,2.68193,3728.7,3728.1,1.5449]
[1736181559962,2.68164,3729.1,3728.1,1.5449]
[1736181560120,2.68164,3729.1,3728.1,1.57172019]
[1736181560496,0.5399824,3730.0,3728.5,1.5973]
[1736181560642,2.68128,3729.6,3728.5,1.5973]
[1736181560971,0.21183824,3729.9,3728.5,1.5973]
[1736181561320,2.68154,3729.2,3728.5,1.5973]
[1736181561515,2.6816,3729.2,3728.5,1.5973]
[1736181561752,2.6813,3729.6,3728.5,1.5973]
[1736181561982,2.68156,3729.2,3728.5,1.5973]
[1736181562637,2.68175,3728.9,3728.1,1.6634]
[1736181563845,3.0,3728.8,3728.1,1.6634]
[1736181564365,0.26813,3729.5,3728.4,0.55]
[1736181564581,1.86953824,3729.9,3728.5,1.63661699]
[1736181564796,1.86953824,3729.9,3728.5,1.6098]
[1736181564797,2.68163,3729.1,3728.5,1.6098]
[1736181566240,3.0,3729.2,3728.5,1.6098]
[1736181567357,2.68157,3729.2,3728.5,1.6098]
[1736181567562,2.949727,3729.2,3728.5,1.6098]
[1736181567945,2.68177,3728.9,3728.5,1.6098]
[1736181568344,2.68221,3728.3,3727.4,1.5319]
[1736181568560,4.28713,3729.3,3727.8,1.5319]
[1736181568763,2.68177,3728.9,3728.0,1.5465]
[1736181569240,2.9767627,3728.9,3728.0,1.5465]
[1736181569441,2.949717,3729.2,3728.0,4.22888]
[1736181569655,2.949717,3729.2,3728.2,1.661]
[1736181569859,0.268157,3729.2,3728.2,1.661]
[1736181570059,5.68147,3729.3,3728.3,0.02682003]
[1736181570322,5.68147,3729.3,3728.2,4.34321]
[1736181570519,5.68147,3729.3,3728.3,0.02681845]
[1736181570809,5.68147,3729.3,3728.2,4.34321]
[1736181571310,3.0,3729.1,3728.2,1.661]
[1736181571514,0.568156,3729.1,3728.2,1.661]
[1736181571815,2.68148,3729.3,3728.2,1.68781845]
[1736181572027,2.04068042,3729.7,3728.4,1.5969]
[1736181572233,2.52549454,3729.5,3728.4,1.62371843]
[1736181572360,2.68127,3729.6,3726.6,9.95932396]
[1736181572361,0.06318157,3727.3,3727.1,2.68298]
[1736181572562,0.03353527,3728.4,3727.2,1.63292822]
[1736181572824,0.03353527,3728.5,3727.2,1.63292822]
[1736181573118,0.03353527,3728.5,3728.3,35.0]
[1736181573319,0.03353527,3728.5,3728.1,1.6061]
[1736181573625,2.68217,3728.4,3728.1,1.6061]
[1736181573765,0.0335293,3728.3,3728.1,1.6061]
[1736181574263,0.0335293,3728.3,3728.2,35.0]
[1736181574467,2.68217,3728.4,3728.2,35.0]
[1736181574468,2.71569884,3728.4,3728.2,35.0]
[1736181574699,2.71569884,3728.4,3728.1,1.6061]
[1736181574901,3.28726872,3728.4,3728.1,1.6061]
[1736181575431,3.28726872,3728.4,3728.3,35.0]
[1736181575564,3.25373988,3728.4,3728.3,35.0]
[1736181575953,0.03352838,3728.5,3728.3,35.0]
[1736181576061,2.68211,3728.4,3728.1,1.6061]
[1736181576262,0.03352928,3728.3,3728.1,1.6061]
[1736181576701,2.71559927,3728.5,3728.2,35.0]
[1736181577076,2.71559927,3728.5,3728.1,1.6061]
[1736181577411,3.2871592,3728.5,3728.1,1.6061]
[1736181577561,3.2871592,3728.5,3728.4,35.0]
[1736181577763,3.25362993,3728.5,3728.4,35.0]
[1736181577958,2.68207,3728.5,3728.4,35.0]
[1736181578924,2.44581403,3729.9,3728.5,1.6093]
[1736181579128,2.68156,3729.2,3728.5,1.6093]
[1736181579281,2.68146,3729.3,3728.5,1.6093]
[1736181579622,2.68133,3729.5,3729.2,35.0]
[1736181579818,1.5506,3729.7,3729.2,35.0]
[1736181579819,0.71362172,3729.7,3729.2,35.0]
[1736181579979,0.03351943,3729.7,3728.6,3.23196]
[1736181580326,2.68125,3729.6,3728.6,3.23196]
[1736181580485,0.03351855,3729.5,3728.6,3.23196]
[1736181580682,2.68111,3729.8,3728.6,3.25877484]
[1736181580865,0.03351852,3729.7,3728.6,0.02681484]
[1736181581121,5.71469852,3729.7,3729.6,35.0]
[1736181581322,6.79448413,3729.7,3729.6,35.0]
[1736181582440,3.0,3729.7,3729.6,35.0]
[1736181582648,0.03351705,3730.0,3729.6,35.0]
[1736181582999,0.03351705,3730.0,3729.1,1.5174]
[1736181583272,2.68111,3729.8,3729.1,1.5174]
[1736181583488,0.03351612,3729.7,3729.1,1.5174]
[1736181583779,0.03351613,3730.1,3729.6,35.0]
[1736181583931,2.68118,3729.7,3729.6,35.0]
[1736181584575,5.68118,3729.7,3729.6,35.0]
[1736181585379,3.0,3729.7,3729.6,35.0]
[1736181585562,5.68118,3729.7,3729.6,35.0]
[1736181585977,3.0,3729.7,3729.6,35.0]
[1736181586131,2.68089,3730.1,3729.6,35.0]
[1736181586329,0.03351586,3730.0,3729.1,1.5174]
[1736181586529,1.5083,3730.5,3729.4,0.55]
[1736181586773,2.6805,3730.7,3730.4,35.0]
[1736181587086,0.94402763,3730.6,3730.4,35.0]
[1736181587287,0.94402763,3730.6,3729.4,1.6238]
[1736181587582,3.0,3730.3,3729.5,0.55]
[1736181587788,3.03351084,3730.3,3729.5,0.55]
[1736181588080,2.68089,3730.1,3729.4,1.6238]
[1736181588288,2.71449451,3730.0,3729.4,1.6238]
[1736181588636,0.57144008,3730.1,3729.9,35.0]
[1736181589051,0.57144008,3730.1,3729.4,1.6238]
[1736181589356,2.68082,3730.2,3729.5,0.02681098]
[1736181589557,2.68082,3730.2,3730.1,35.0]
[1736181589751,0.03351198,3730.3,3730.1,35.0]
[1736181589959,0.03351198,3730.3,3729.5,0.55]
[1736181590500,0.03351198,3730.3,3730.2,35.0]
[1736181590707,0.78759598,3730.3,3730.2,35.0]
[1736181591989,0.03351198,3730.3,3730.2,35.0]
[1736181592303,5.68052,3730.7,3730.2,35.0]
[1736181592505,0.94402857,3730.6,3730.1,1.5746]
[1736181592724,0.91051817,3730.6,3730.1,1.5746]
[1736181592859,0.94402798,3730.6,3730.5,35.0]
[1736181593061,6.59105817,3730.6,3730.5,35.0]
[1736181593618,3.91051817,3730.6,3730.5,35.0]
[1736181593909,3.0,3730.6,3730.5,35.0]
[1736181595002,5.68053,3730.6,3730.5,35.0]
[1736181595156,3.0,3730.6,3730.5,35.0]
[1736181595357,5.68053,3730.6,3730.5,35.0]
[1736181596011,2.68036,3730.9,3730.5,35.0]
[1736181596238,2.71391667,3730.8,3730.1,1.5746]
[1736181596516,4.91406579,3731.3,3730.2,0.02680532]
[1736181596517,2.23397579,3731.3,3730.2,0.02680532]
[1736181596682,2.68026,3731.0,3730.2,0.02680532]
[1736181597006,2.52549454,3731.4,3730.2,0.57680532]
[1736181597007,2.7136944,3731.1,3730.2,0.57680532]
[1736181597199,2.7136944,3731.1,3730.2,0.55]
[1736181597403,0.0335044,3731.1,3730.2,0.55]
[1736181597718,2.68026,3731.0,3730.2,0.55]
[1736181598616,2.68032,3730.9,3730.2,0.55]
[1736181599835,0.03350371,3730.8,3730.1,1.5746]
[1736181600257,2.52549454,3730.5,3729.1,1.6079]
[1736181600551,3.03351401,3730.4,3729.1,1.6079]
[1736181600762,2.68082,3730.2,3729.1,1.6079]
[1736181601053,2.68082,3730.2,3729.2,0.02681082]
[1736181601054,2.68102,3730.0,3729.2,0.02681082]
[1736181601349,0.03351353,3730.3,3729.4,0.55]
[1736181601350,0.03351232,3730.3,3729.4,0.55]
[1736181601548,2.68095,3730.1,3729.4,0.55]
[1736181601749,2.68102,3730.0,3729.3,1.6015]
[1736181602055,3.03351084,3730.4,3729.3,1.6015]
[1736181602352,2.6812,3729.7,3729.3,1.6015]
[1736181602914,2.6812,3729.7,3729.6,35.0]
[1736181603959,4.264,3729.7,3729.6,35.0]
[1736181605864,7.2715,3729.7,3729.6,35.0]
[1736181606159,2.68199,3728.6,3728.3,1.5612]
[1736181606902,2.68199,3728.6,3728.5,35.0]
[1736181607143,2.68184,3728.8,3728.5,35.0]
[1736181607301,2.68184,3728.8,3728.3,1.5612]
[1736181607807,2.68184,3728.8,3728.7,35.0]
[1736181608005,3.66694617,3728.8,3728.7,35.0]
[1736181608847,3.6334219,3728.8,3728.7,35.0]
[1736181609455,3.66694746,3728.8,3728.7,35.0]
[1736181609907,0.0075,3728.7,3727.7,0.54098416]
[1736181610104,0.0075,3728.7,3727.2,1.5612]
[1736181610105,2.68253,3727.9,3727.2,1.5612]
[1736181610435,2.68218,3728.4,3727.7,0.54107861]
[1736181610633,2.7155107,3728.6,3727.8,1.5612]
[1736181610833,2.7155107,3728.6,3727.8,1.58802456]
[1736181611040,2.7155007,3728.6,3728.5,35.0]
[1736181611844,3.66711022,3728.6,3728.5,35.0]
[1736181612822,2.68197,3728.6,3728.5,35.0]
[1736181613227,2.71549791,3728.6,3728.5,35.0]
[1736181613502,2.68197,3728.6,3728.5,35.0]
[1736181613722,2.55902109,3728.8,3728.5,35.0]
[1736181613908,2.68191,3728.7,3727.8,1.5612]
[1736181614151,2.71543727,3728.7,3727.9,0.02682182]
[1736181614330,2.71543727,3728.7,3728.6,35.0]
[1736181614523,2.68191,3728.7,3728.6,35.0]
[1736181615645,0.03352573,3729.0,3728.6,35.0]
[1736181615844,2.68197,3728.6,3727.8,1.5612]
[1736181616202,2.71556657,3728.5,3727.8,1.5612]
[1736181616840,2.68204,3728.5,3728.4,35.0]
[1736181617200,5.20753454,3728.5,3728.4,35.0]
[1736181617643,2.68204,3728.5,3728.4,35.0]
[1736181619404,6.75513454,3728.5,3728.4,35.0]
[1736181619601,7.70218277,3728.5,3728.4,35.0]
[1736181619906,7.70968277,3728.5,3728.4,35.0]
[1736181620652,7.70218277,3728.5,3728.4,35.0]
[1736181621121,7.70968277,3728.5,3728.4,35.0]
[1736181624336,6.75513454,3728.5,3728.4,35.0]
[1736181624866,2.68204,3728.5,3728.4,35.0]
[1736181625357,5.20753454,3728.5,3728.4,35.0]
[1736181627021,2.68204,3728.5,3728.4,35.0]
[1736181628460,5.20753454,3728.5,3728.4,35.0]
[1736181628665,7.27845881,3728.5,3728.4,35.0]
[1736181628825,10.27845881,3728.5,3728.4,35.0]
[1736181630271,2.68265,3727.7,3727.1,1.1235]
[1736181630426,3.03353433,3728.0,3727.1,1.1235]
[1736181630624,3.03353433,3728.0,3727.2,0.02682746]
[1736181630846,2.68261,3727.7,3727.1,1.1235]
[1736181631257,2.68261,3727.7,3727.6,35.0]
[1736181631821,3.55590289,3728.0,3727.6,35.0]
[1736181632025,3.55590289,3728.0,3727.1,1.1235]
[1736181632026,2.68255,3727.8,3727.1,1.1235]
[1736181632479,3.55590289,3728.0,3727.1,1.1235]
[1736181632480,2.71616434,3727.7,3727.1,1.1235]
[1736181632777,0.0447069,3727.7,3727.1,1.1235]
[1736181632987,0.0447069,3727.7,3727.6,35.0]
[1736181633473,0.03353184,3728.3,3727.6,36.0839]
[1736181633634,2.68241,3728.0,3727.6,1.0839]
[1736181633973,0.04371913,3728.2,3727.6,1.0839]
[1736181634184,0.04371913,3728.2,3728.1,35.0]
[1736181634630,2.68198,3728.6,3728.1,35.0]
[1736181634833,2.68198,3728.6,3727.6,1.1345]
[1736181635146,0.04384786,3728.5,3727.6,1.1345]
[1736181635345,0.04384786,3728.5,3727.7,0.55]
[1736181635875,0.04384786,3728.5,3728.4,35.0]
[1736181636233,2.68183,3728.8,3728.4,35.0]
[1736181636577,0.00867027,3728.7,3728.3,1.0584]
[1736181636760,0.03352423,3729.2,3728.4,0.02681817]
[1736181637075,0.03352244,3729.3,3728.6,35.0]
[1736181637280,2.68158,3729.2,3728.4,0.55]
[1736181637442,3.0,3729.6,3728.5,0.0268158]
[1736181637665,2.6814,3729.4,3728.5,1.1336]
[1736181638081,0.03351937,3729.5,3728.6,0.57681551]
[1736181638286,2.68126,3729.6,3728.6,0.57681551]
[1736181638287,2.68126,3729.6,3729.4,35.0]
[1736181638456,2.71477754,3729.6,3729.4,35.0]
[1736181638650,2.71477754,3729.6,3729.2,1.1336]
[1736181638969,2.68136,3729.5,3729.2,1.1336]
[1736181639170,3.31578721,3729.5,3729.4,35.0]
[1736181639867,3.35229224,3729.5,3729.4,35.0]
[1736181642083,7.50429224,3729.5,3729.4,35.0]